bitfinex/quotes_ETHUSD_20240921
["timestamp","ask_amount","ask_price","bid_price","bid_amount"]
[1726902822137,0.38310208,2555.0,2554.9,8.9636606]
[1726902826982,0.38310208,2555.0,2554.9,8.55409079]
[1726902827286,0.38310208,2555.0,2554.9,8.55402795]
[1726902827473,0.38310208,2555.0,2554.9,9.14780244]
[1726902827647,0.38310208,2555.0,2554.9,9.14784725]
[1726902827984,0.38310208,2555.0,2554.9,9.14787568]
[1726902828279,0.38310208,2555.0,2554.9,7.50780881]
[1726902828660,0.38310208,2555.0,2554.9,9.55742941]
[1726902828978,0.38310208,2555.0,2554.9,6.91404]
[1726902829491,0.38310208,2555.0,2554.9,7.50777653]
[1726902829688,0.38310208,2555.0,2554.9,9.55774912]
[1726902829889,0.38310208,2555.0,2554.9,7.50777653]
[1726902830391,0.38310208,2555.0,2554.9,9.55774912]
[1726902830757,0.38310208,2555.0,2554.9,7.50777653]
[1726902831789,0.38310208,2555.0,2554.9,9.55774912]
[1726902834188,0.38310208,2555.0,2554.9,9.55793073]
[1726902836594,0.38310208,2555.0,2554.9,8.01227646]
[1726902837191,0.38310208,2555.0,2554.9,7.41853993]
[1726902837408,0.38310208,2555.0,2554.9,8.05611852]
[1726902837590,0.38310208,2555.0,2554.9,8.01234334]
[1726902840894,0.38310208,2555.0,2554.9,8.01225193]
[1726902841932,0.38310208,2555.0,2554.9,7.507752]
[1726902842283,0.38310208,2555.0,2554.9,7.55152765]
[1726902842521,0.38310208,2555.0,2554.9,7.507752]
[1726902842720,0.38310208,2555.0,2554.9,7.55152806]
[1726902843621,0.38310208,2555.0,2554.9,6.95781606]
[1726902843922,0.38310208,2555.0,2554.9,9.41842375]
[1726902844121,0.38310208,2555.0,2554.9,9.87914762]
[1726902845481,0.38310208,2555.0,2554.9,7.41853993]
[1726902845689,0.38310208,2555.0,2554.9,7.46231621]
[1726902847929,0.38310208,2555.0,2554.9,12.90650135]
[1726902848112,0.38310208,2555.0,2554.9,12.86272507]
[1726902849524,0.38310208,2555.0,2554.9,12.86170985]
[1726902849731,0.38310208,2555.0,2554.9,12.86172618]
[1726902849889,0.38310208,2555.0,2554.9,12.86169546]
[1726902851133,0.38310208,2555.0,2554.9,12.86145668]
[1726902851446,0.38310208,2555.0,2554.9,10.40278349]
[1726902851587,0.38310208,2555.0,2554.9,12.86134188]
[1726902852604,0.38310208,2555.0,2554.9,12.86113953]
[1726902855608,0.38310208,2555.0,2554.9,12.35279597]
[1726902855809,0.037462,2555.8,2555.7,3.0]
[1726902856008,0.037462,2555.8,2555.7,8.63802114]
[1726902856751,2.383362,2555.8,2555.7,8.63802114]
[1726902857123,2.383362,2555.8,2555.7,6.91282]
[1726902858550,2.383362,2555.8,2555.7,3.91282]
[1726902858852,2.6216982,2555.8,2555.7,3.91282]
[1726902862518,3.1716982,2555.8,2555.7,3.91282]
[1726902864751,2.6216982,2555.8,2555.7,3.91282]
[1726902865756,3.1716982,2555.8,2555.7,3.91282]
[1726902873074,0.55,2555.7,2555.6,3.91297]
[1726902873242,2.916,2555.7,2555.6,3.91297]
[1726902873442,3.24496328,2555.7,2555.6,3.91297]
[1726902882196,0.2757982,2555.8,2555.7,3.91282]
[1726902882397,0.037462,2555.8,2555.7,3.91282]
[1726902882868,2.411662,2555.8,2555.7,3.91282]
[1726902883570,2.411662,2555.8,2555.7,4.2839623]
[1726902885164,2.411662,2555.8,2555.7,3.91282]
[1726902885402,2.411662,2555.8,2555.6,3.91297]
[1726902885403,2.961662,2555.8,2555.4,3.91318]
[1726902885709,0.55,2555.5,2555.4,3.91318]
[1726902885870,2.9242,2555.5,2555.4,3.91318]
[1726902886763,2.9242,2555.5,2555.4,7.82634]
[1726902894473,0.037462,2555.8,2555.7,3.91282]
[1726902894682,0.587462,2555.8,2555.7,3.91282]
[1726902894991,2.961662,2555.8,2555.7,3.91282]
[1726902896409,3.39089029,2555.8,2555.7,3.91282]
[1726902901001,2.961662,2555.8,2555.7,3.91282]
[1726902901804,0.037462,2555.8,2555.7,3.91282]
[1726902907579,0.037462,2555.8,2555.7,6.37462]
[1726902909511,0.037462,2555.8,2555.7,9.37462]
[1726902913235,0.037462,2555.8,2555.7,6.91282]
[1726902915039,0.037462,2555.8,2555.7,3.91282]
[1726902936531,0.037462,2555.8,2555.7,6.91282]
[1726902937886,0.037462,2555.8,2555.7,9.21802]
[1726902938084,0.037462,2555.8,2555.7,10.94322114]
[1726902938284,0.037462,2555.8,2555.7,9.21802]
[1726902939988,0.037462,2555.8,2555.7,10.94322114]
[1726902940191,0.037462,2555.8,2555.7,12.5830657]
[1726902943201,0.037462,2555.8,2555.7,10.94322114]
[1726902943363,0.037462,2555.8,2555.7,12.5830657]
[1726902943567,0.037462,2555.8,2555.7,10.85786456]
[1726902943859,0.037462,2555.8,2555.7,10.94322114]
[1726902945502,0.037462,2555.8,2555.7,12.5830657]
[1726902947199,0.037462,2555.8,2555.7,11.51168063]
[1726902947402,0.037462,2555.8,2555.7,13.55484415]
[1726902948559,0.037462,2555.8,2555.7,13.55456319]
[1726902949515,0.037462,2555.8,2555.7,11.51168063]
[1726902949895,0.037462,2555.8,2555.7,13.14605571]
[1726902950424,0.037462,2555.8,2555.7,13.55410047]
[1726902951432,0.037462,2555.8,2555.7,11.51168063]
[1726902951637,0.037462,2555.8,2555.7,10.85182568]
[1726902951931,0.037462,2555.8,2555.7,10.94322114]
[1726902958929,0.037462,2555.8,2555.7,13.70584398]
[1726902959458,0.037462,2555.8,2555.7,12.0720383]
[1726902959801,0.037462,2555.8,2555.7,13.70431866]
[1726902960854,0.037462,2555.8,2555.7,9.21802]
[1726902961143,0.037462,2555.8,2555.7,10.94322114]
[1726902962530,0.037462,2555.8,2555.7,7.94322114]
[1726902962717,0.037462,2555.8,2555.7,5.63802114]
[1726902964033,0.037462,2555.8,2555.7,8.63802114]
[1726902964744,0.037462,2555.8,2555.7,9.7668383]
[1726902965214,0.037462,2555.8,2555.7,12.1252383]
[1726902967645,0.037462,2555.8,2555.7,13.75751866]
[1726902968253,0.037462,2555.8,2555.7,12.1252383]
[1726902969938,0.037462,2555.8,2555.7,14.16563949]
[1726902975857,0.037462,2555.8,2555.7,14.9042951]
[1726902976369,0.037462,2555.8,2555.7,12.86389391]
[1726902976535,0.037462,2555.8,2555.7,14.90503378]
[1726902977459,0.037462,2555.8,2555.7,12.86389391]
[1726902978027,0.037462,2555.8,2555.7,14.90525485]
[1726902978227,0.037462,2555.8,2555.7,12.86389391]
[1726902978569,0.037462,2555.8,2555.7,14.90554568]
[1726902979325,0.037462,2555.8,2555.7,12.86389391]
[1726902982167,0.037462,2555.8,2555.7,12.1252383]
[1726902982737,0.037462,2555.8,2555.7,12.86493265]
[1726902982942,0.037462,2555.8,2555.7,13.60463621]
[1726902983873,0.037462,2555.8,2555.7,16.0562431]
[1726902984174,0.037462,2555.8,2555.7,13.60463621]
[1726902984346,0.037462,2555.8,2555.7,16.0562431]
[1726902984976,0.037462,2555.8,2555.7,13.60463621]
[1726902985385,0.037462,2555.8,2555.7,16.0562431]
[1726902985533,0.037462,2555.8,2555.7,13.60463621]
[1726902985737,0.037462,2555.8,2555.7,16.0562431]
[1726902986369,0.037462,2555.8,2555.7,16.05837207]
[1726902986947,7.407462,2556.6,2556.5,6.91159]
[1726902987136,7.407462,2556.6,2556.5,7.65129356]
[1726902987137,0.037462,2556.6,2556.5,7.65129356]
[1726902987352,0.037462,2556.6,2556.5,9.33016462]
[1726902987549,0.037462,2556.6,2556.5,9.28651575]
[1726902989452,2.428662,2556.6,2556.5,6.91159]
[1726902989788,2.428662,2556.6,2556.5,8.63679114]
[1726902990089,0.037462,2556.6,2556.5,8.63679114]
[1726902993953,0.037462,2556.6,2556.5,6.91159]
[1726902994174,0.037462,2556.6,2556.5,8.63679114]
[1726902994503,2.428662,2556.6,2556.5,8.63679114]
[1726902994652,2.428662,2556.6,2556.5,3.91159]
[1726902995767,2.978662,2556.6,2556.5,3.91159]
[1726902996098,3.2765282,2556.6,2556.5,3.91159]
[1726902996767,3.2765282,2556.6,2556.5,6.91159]
[1726902997010,2.3912,2556.5,2555.9,1.63522219]
[1726902997193,0.55,2556.2,2556.1,3.91221]
[1726902997504,3.029,2556.1,2556.0,3.91224]
[1726902999719,2.479,2555.9,2555.8,3.91261]
[1726902999925,3.029,2555.9,2555.8,3.91261]
[1726903003209,2.479,2555.9,2555.8,3.91261]
[1726903012606,0.35890203,2556.2,2556.1,3.91221]
[1726903012761,0.55,2556.2,2556.1,3.91221]
[1726903012962,0.55,2556.4,2556.1,3.91221]
[1726903013158,0.55,2556.2,2556.1,3.91221]
[1726903013366,3.029,2556.2,2556.1,3.91221]
[1726903019197,3.029,2556.2,2555.9,3.91248]
[1726903019369,2.9351,2556.0,2555.9,3.91248]
[1726903022581,2.9351,2556.0,2555.9,3.87399982]
[1726903026432,2.3851,2556.0,2555.9,3.87399982]
[1726903042629,2.8856,2556.2,2556.1,3.91221]
[1726903042969,3.46181101,2556.2,2556.1,3.91221]
[1726903043556,1.23279006,2556.5,2556.1,2.254]
[1726903043763,4.0015236,2556.6,2556.3,3.91181]
[1726903043958,4.0015236,2556.6,2556.4,3.91174]
[1726903044272,4.0015236,2556.6,2556.5,3.91159]
[1726903044273,3.90371826,2556.6,2556.5,3.91159]
[1726903044662,3.90371826,2556.6,2556.4,3.91172]
[1726903044859,1.2865754,2556.5,2556.4,3.91172]
[1726903047049,2.51936546,2556.5,2556.4,3.91172]
[1726903047265,2.51936546,2556.5,2556.3,3.91178]
[1726903047464,2.8186,2556.4,2556.3,3.91178]
[1726903047672,1.96936546,2556.5,2556.4,3.91175]
[1726903047877,1.27025206,2556.6,2556.5,3.91159]
[1726903048061,0.037462,2556.6,2556.5,3.91159]
[1726903050257,2.2686,2556.5,2556.4,3.91173]
[1726903051913,2.2686,2556.3,2555.7,6.90142219]
[1726903052056,2.2686,2556.3,2555.6,2.04802896]
[1726903052057,2.8186,2556.1,2556.0,6.91235]
[1726903052421,2.2686,2556.3,2556.0,3.0]
[1726903052593,2.2686,2556.3,2555.9,3.0]
[1726903052903,2.91641248,2556.3,2556.2,3.91205]
[1726903053101,2.8186,2556.3,2556.2,3.91205]
[1726903056322,3.23351992,2556.3,2556.2,3.91205]
[1726903062919,2.8632,2556.2,2556.1,3.91221]
[1726903067321,0.55,2556.2,2556.1,3.91221]
[1726903076247,1.23279006,2556.4,2556.3,3.9119]
[1726903076541,6.06466104,2556.4,2556.3,3.9119]
[1726903076700,4.83187098,2556.4,2556.3,3.9119]
[1726903077099,6.06466104,2556.4,2556.3,3.9119]
[1726903077942,4.83187098,2556.4,2556.3,3.9119]
[1726903078239,5.38187098,2556.4,2556.3,3.9119]
[1726903079105,5.38187098,2556.4,2556.3,3.91072541]
[1726903079106,6.61466104,2556.4,2556.3,3.91072541]
[1726903083506,6.61466104,2556.4,2556.2,3.91205]
[1726903083507,6.71246809,2556.4,2556.2,3.91205]
[1726903083860,4.78641425,2556.3,2556.2,3.91205]
[1726903084207,3.65143696,2556.3,2556.2,3.91205]
[1726903085332,4.88422702,2556.3,2556.2,3.91205]
[1726903086622,3.65143696,2556.3,2556.2,3.91205]
[1726903086924,4.78641425,2556.3,2556.2,3.91205]
[1726903087630,6.60474332,2556.3,2556.2,3.91205]
[1726903087831,9.00534332,2556.3,2556.0,3.91228]
[1726903088031,4.67111615,2556.1,2556.0,3.91228]
[1726903088243,4.67111615,2556.1,2555.8,3.91264]
[1726903088244,0.55,2555.9,2555.8,3.91256]
[1726903088448,2.36834402,2555.9,2555.8,3.91256]
[1726903088669,3.31884805,2555.9,2555.8,3.91256]
[1726903090975,3.31884805,2555.9,2555.7,3.9128]
[1726903092845,3.31884805,2555.9,2555.8,3.91266]
[1726903094164,3.22102018,2555.9,2555.8,3.91266]
[1726903095093,1.50050403,2555.9,2555.8,3.91266]
[1726903098172,0.55,2556.1,2556.0,3.91227]
[1726903098373,1.78279006,2556.1,2556.0,3.91227]
[1726903098952,3.50330621,2556.1,2556.0,3.91227]
[1726903100212,2.27051615,2556.1,2556.0,3.91227]
[1726903100492,3.50330621,2556.1,2555.9,3.91251]
[1726903100693,1.35332167,2556.0,2555.9,7.82494]
[1726903101959,1.35332167,2556.0,2555.9,3.91243]
[1726903111750,1.25549926,2556.0,2555.9,3.91243]
[1726903112737,1.35332321,2556.0,2555.9,3.91243]
[1726903113849,1.25549926,2556.0,2555.9,3.91243]
[1726903114059,1.3533231,2556.0,2555.9,3.91243]
[1726903120076,1.35332282,2556.0,2555.9,3.91243]
[1726903121675,1.35332275,2556.0,2555.9,3.91243]
[1726903122787,2.58611281,2556.0,2555.9,3.91243]
[1726903122994,1.35332275,2556.0,2555.9,3.91243]
[1726903124281,1.25549926,2556.0,2555.9,3.91243]
[1726903125095,2.48828932,2556.0,2555.9,3.91243]
[1726903131355,2.89921935,2556.0,2555.9,3.91243]
[1726903131555,2.48803553,2556.0,2555.9,3.91243]
[1726903132173,1.25549926,2556.0,2555.9,3.91243]
[1726903133165,2.89921935,2556.0,2555.9,3.91243]
[1726903134399,2.19372009,2556.0,2555.9,3.91243]
[1726903134602,1.7830727,2556.0,2555.9,6.32623]
[1726903138821,0.55,2556.0,2555.9,3.91243]
[1726903139198,2.19372009,2556.0,2555.9,3.91243]
[1726903139399,2.73391304,2556.0,2555.9,3.91243]
[1726903140001,1.09019295,2556.0,2555.9,3.91243]
[1726903140202,0.55,2555.9,2555.6,3.91288]
[1726903140403,2.27051615,2555.7,2555.6,3.91288]
[1726903140631,6.34333624,2555.7,2555.6,3.91288]
[1726903140844,7.19298587,2555.7,2555.6,3.91288]
[1726903141138,7.29081957,2555.7,2555.6,3.91288]
[1726903141841,5.64709948,2555.7,2555.6,3.91288]
[1726903142214,7.29081957,2555.7,2555.6,3.91288]
[1726903142410,5.64709948,2555.7,2555.6,3.91288]
[1726903142801,6.87980582,2555.7,2555.6,3.91288]
[1726903143036,6.87980582,2555.7,2555.4,3.91318]
[1726903143233,0.55,2555.5,2555.4,3.91318]
[1726903143428,0.64783815,2555.5,2555.4,3.91318]
[1726903143754,0.55,2555.5,2555.4,3.91318]
[1726903145155,0.55,2555.5,2555.1,3.91362]
[1726903145350,2.27051615,2555.3,2555.1,3.91362]
[1726903145559,1.02974645,2555.2,2555.1,3.91362]
[1726903148250,0.55,2555.1,2555.0,3.91389]
[1726903153662,0.55,2555.1,2554.9,3.91404]
[1726903153863,0.55,2555.1,2554.9,3.91394]
[1726903154525,0.64785676,2555.1,2554.9,3.91394]
[1726903156167,3.07695676,2555.1,2554.9,3.91394]
[1726903156474,0.90567032,2555.0,2554.9,3.91394]
[1726903170148,0.55,2554.9,2554.3,2.3769]
[1726903170369,0.55,2554.7,2554.6,3.91438]
[1726903170676,0.78683866,2554.7,2554.6,3.91438]
[1726903172139,1.72051615,2554.8,2554.6,3.91438]
[1726903172140,0.55,2554.9,2554.7,3.91426]
[1726903172981,0.55,2554.9,2554.2,3.91509]
[1726903173183,0.55,2554.9,2553.5,2.04356085]
[1726903173489,0.55,2554.9,2552.5,12.37]
[1726903173490,2.4131,2554.8,2438.0,0.1]
[1726903173782,3.91981,2551.2,2550.6,2.04990964]
[1726903173995,23.8695376,2551.3,2550.1,0.04420203]
[1726903174141,23.8695376,2551.3,2550.4,0.04419683]
[1726903174342,4.64092886,2551.2,2550.1,1.72051615]
[1726903174669,0.81535061,2551.2,2550.2,0.04418376]
[1726903174844,25.10224394,2551.3,2550.4,1.72051615]
[1726903174845,24.68488821,2551.3,2550.4,1.72051615]
[1726903175045,23.8695376,2551.3,2550.4,1.72051615]
[1726903175699,23.881596,2551.3,2548.2,0.3917]
[1726903175996,1.36535061,2550.9,2549.4,3.74422022]
[1726903176194,0.55,2550.7,2547.9,0.0415664]
[1726903176407,0.55,2550.4,2548.9,3.74422022]
[1726903176561,0.55,2550.2,2549.0,2.3769]
[1726903176895,2.12153506,2550.1,2549.1,0.044302]
[1726903177057,2.12153506,2550.1,2549.0,2.3769]
[1726903177493,2.12153506,2550.1,2549.2,3.74422022]
[1726903177797,2.12153506,2550.1,2548.0,3.74422022]
[1726903177798,19.85,2550.2,2549.5,3.74422022]
[1726903177968,19.85,2550.4,2549.5,3.74422022]
[1726903178303,3.91,2550.5,2549.5,3.74422022]
[1726903178958,3.91,2550.5,2549.6,0.04424289]
[1726903179153,0.61430469,2550.4,2549.6,0.04424289]
[1726903179371,0.61430469,2550.4,2549.5,3.74422022]
[1726903179570,0.61430469,2550.4,2549.3,2.3709]
[1726903179778,0.64803209,2550.4,2549.3,2.3709]
[1726903180000,0.64803209,2550.4,2549.3,5.3709]
[1726903180369,0.64803209,2550.4,2549.4,0.0442774]
[1726903180575,0.55,2550.2,2549.4,0.0442774]
[1726903181385,0.55,2550.2,2549.3,5.33073563]
[1726903182385,0.55,2550.2,2549.3,2.33073563]
[1726903182701,0.55,2550.2,2548.9,3.74422022]
[1726903183612,0.55,2550.2,2549.0,3.0]
[1726903183767,2.08558032,2550.1,2549.0,3.0]
[1726903184394,0.55,2550.2,2549.0,3.0]
[1726903184987,19.85,2550.5,2549.3,3.74422022]
[1726903185201,19.85,2550.5,2549.6,3.74422022]
[1726903185415,19.85,2551.0,2549.6,3.74422022]
[1726903185575,0.0980215,2550.9,2549.7,5.0972]
[1726903185776,2.48481265,2550.9,2549.7,5.0972]
[1726903186275,0.55,2550.8,2549.7,5.0972]
[1726903186470,2.48481265,2550.9,2549.7,5.0972]
[1726903187817,0.55,2550.8,2549.7,5.0972]
[1726903189538,20.4,2550.8,2549.7,5.0972]
[1726903189694,22.67867912,2550.8,2550.0,5.0972]
[1726903189888,22.67867912,2550.8,2550.0,1.46360112]
[1726903190095,2.82867912,2550.8,2550.0,1.46360112]
[1726903191294,2.27867912,2550.8,2550.0,1.46360112]
[1726903191492,2.27867912,2550.8,2549.9,2.30117832]
[1726903191809,0.55,2551.0,2549.9,2.30117832]
[1726903193029,0.55,2551.0,2549.3,3.74422022]
[1726903193234,0.55,2551.0,2550.0,3.74422022]
[1726903193399,0.61427792,2551.1,2550.3,3.74422022]
[1726903193735,6.39175306,2551.2,2550.4,3.0]
[1726903194034,3.9220584,2551.2,2550.4,3.0]
[1726903194426,3.9220584,2551.2,2550.3,3.74422022]
[1726903196435,3.9220584,2551.2,2550.4,3.0]
[1726903197235,0.0120584,2551.2,2550.7,3.0]
[1726903197748,0.0120584,2551.2,2550.9,3.74422022]
[1726903197952,0.0120584,2551.2,2551.0,3.0]
[1726903198157,0.0120584,2551.2,2550.9,3.11186464]
[1726903200730,0.0120584,2551.2,2550.6,3.74422022]
[1726903200929,0.0120584,2551.2,2550.7,3.0]
[1726903202318,0.55,2551.0,2549.7,0.48607209]
[1726903202517,0.55,2551.0,2549.4,3.74422022]
[1726903202726,0.2815,2550.9,2549.4,3.74422022]
[1726903203218,0.2815,2550.9,2550.0,3.74422022]
[1726903204221,0.2815,2550.9,2550.1,3.0]
[1726903206339,22.115,2551.1,2550.3,3.74422022]
[1726903206553,0.0120584,2551.2,2550.4,3.0]
[1726903206771,0.0120584,2551.2,2550.3,3.74422022]
[1726903208653,0.0120584,2551.2,2550.3,1.56439156]
[1726903214387,0.0120584,2551.2,2550.0,0.19438828]
[1726903214567,0.0120584,2551.2,2550.5,3.0]
[1726903215594,0.82740901,2551.2,2550.5,3.0]
[1726903216610,3.74466389,2551.1,2550.5,3.0]
[1726903216904,2.92944777,2551.0,2550.5,3.0]
[1726903217083,0.81535061,2551.1,2550.5,3.0]
[1726903217268,2.92958998,2551.0,2550.5,3.0]
[1726903217470,0.81535061,2550.8,2550.5,3.0]
[1726903217792,1.17415797,2550.7,2549.4,3.0]
[1726903217998,1.23270634,2550.5,2548.6,0.06798104]
[1726903218296,2.93132169,2550.4,2549.8,3.74422022]
[1726903218457,1.23270634,2550.2,2550.1,3.74422022]
[1726903218661,2.93750112,2550.2,2550.1,3.74422022]
[1726903218964,2.93620735,2550.2,2550.1,3.74422022]
[1726903219156,2.93620735,2550.2,2550.1,3.0]
[1726903219356,2.93620735,2550.2,2550.1,3.74422022]
[1726903219566,1.17448294,2550.2,2550.1,6.74422022]
[1726903220008,2.93637034,2550.2,2550.1,6.74422022]
[1726903220355,1.17448294,2550.2,2550.1,6.74422022]
[1726903221497,1.23270634,2550.4,2550.2,3.0]
[1726903221800,2.93742796,2550.3,2550.2,3.0]
[1726903222467,1.23270634,2550.6,2550.2,3.0]
[1726903222661,1.23270634,2550.6,2549.8,0.19576241]
[1726903222662,0.03270634,2550.8,2550.5,3.74422022]
[1726903222896,2.8550469,2550.7,2550.6,3.0]
[1726903223695,0.03270634,2550.8,2550.6,3.0]
[1726903223896,2.854582,2550.7,2550.6,3.0]
[1726903224406,1.1418328,2550.7,2550.6,3.0]
[1726903225099,2.47,2551.0,2550.6,3.0]
[1726903225299,2.85504153,2550.9,2550.6,3.0]
[1726903225607,1.14201661,2550.8,2550.6,3.0]
[1726903225779,2.47,2551.0,2550.6,3.0]
[1726903225973,2.85522418,2550.9,2550.6,3.0]
[1726903226180,1.14208967,2550.8,2550.6,3.0]
[1726903226392,4.12577849,2551.2,2550.6,3.0]
[1726903226702,2.85591223,2551.1,2550.6,3.0]
[1726903226905,2.85591223,2551.0,2550.6,3.0]
[1726903227117,0.0120584,2551.2,2550.8,3.74422022]
[1726903227404,0.0120584,2551.2,2550.9,3.0]
[1726903228585,0.0120584,2551.2,2550.6,3.0]
[1726903228782,0.83156438,2551.2,2550.6,3.0]
[1726903229023,0.81950598,2551.3,2550.6,3.0]
[1726903229247,1.14255403,2551.2,2550.6,3.0]
[1726903229512,0.81950598,2551.3,2550.6,3.0]
[1726903229717,1.14297982,2551.2,2550.6,3.0]
[1726903229923,0.81950598,2551.3,2550.6,3.0]
[1726903230134,1.14301181,2551.2,2550.6,3.0]
[1726903230417,0.81950598,2551.3,2550.6,3.0]
[1726903230778,1.14349041,2551.2,2550.6,3.0]
[1726903230978,0.81950598,2551.3,2550.6,3.0]
[1726903231297,1.1434989,2551.2,2550.6,3.0]
[1726903231485,0.81950598,2551.4,2550.6,3.0]
[1726903232482,0.81950598,2551.4,2550.8,3.74422022]
[1726903232680,0.81950598,2551.4,2550.9,3.0]
[1726903232880,1.14370355,2551.3,2550.9,3.0]
[1726903233110,0.81950598,2551.4,2550.9,3.0]
[1726903233314,3.28950598,2551.5,2550.9,3.0]
[1726903233516,1.14384569,2551.4,2550.9,3.0]
[1726903233716,3.28950598,2551.5,2550.9,3.0]
[1726903234630,1.14372997,2551.4,2550.9,3.0]
[1726903234785,3.28950598,2551.5,2550.9,3.0]
[1726903234984,1.14213058,2551.4,2550.9,3.0]
[1726903235237,3.28950598,2551.5,2550.9,3.0]
[1726903235537,1.14212518,2551.4,2550.9,3.0]
[1726903235743,3.28950598,2551.5,2550.9,3.0]
[1726903235900,3.67498751,2551.4,2550.9,3.0]
[1726903236234,1.14224273,2551.3,2550.9,3.0]
[1726903236437,0.81950598,2551.4,2550.9,3.0]
[1726903236605,1.14233105,2551.3,2550.9,3.0]
[1726903236806,0.81950598,2551.4,2550.9,3.0]
[1726903237698,3.28950598,2551.5,2550.9,3.0]
[1726903238336,2.51754175,2551.4,2550.9,3.0]
[1726903238636,3.28950598,2551.5,2550.9,3.0]
[1726903240542,3.28950598,2551.5,2550.9,3.3978]
[1726903243639,3.28950598,2551.5,2550.9,0.3978]
[1726903245200,2.51720892,2551.4,2550.9,0.3978]
[1726903245505,0.81950598,2551.4,2550.9,0.3978]
[1726903245707,3.28950598,2551.5,2550.9,0.3978]
[1726903245955,2.51720761,2551.4,2550.9,0.3978]
[1726903246236,3.28950598,2551.5,2550.9,0.3978]
[1726903251986,2.51797644,2551.4,2550.9,0.3978]
[1726903252135,0.81950598,2551.4,2550.9,0.3978]
[1726903254672,3.28950598,2551.5,2550.9,0.3978]
[1726903255238,2.51825355,2551.4,2550.9,0.3978]
[1726903255437,0.81950598,2551.4,2550.9,0.3978]
[1726903256339,3.28950598,2551.5,2550.9,0.3978]
[1726903256533,1.69880193,2551.4,2550.9,0.3978]
[1726903256872,3.28950598,2551.5,2550.9,0.3978]
[1726903257033,1.13253011,2551.4,2550.9,0.3978]
[1726903257237,0.81950598,2551.4,2551.0,1.72641282]
[1726903257648,0.81950598,2551.4,2550.9,0.3978]
[1726903257850,1.67488409,2551.7,2551.3,0.3978]
[1726903257851,0.85066998,2551.7,2551.3,0.3978]
[1726903258065,3.25760598,2552.0,2551.5,1.72641282]
[1726903258267,2.4381,2552.0,2551.5,1.72641282]
[1726903258473,0.81950598,2552.0,2551.5,1.72641282]
[1726903258642,0.81950598,2552.1,2551.5,1.72641282]
[1726903261881,2.4381,2551.8,2551.0,0.3978]
[1726903262178,2.4381,2551.8,2551.0,2.12421282]
[1726903262179,1.09003072,2551.7,2551.0,2.12421282]
[1726903262342,0.81950598,2551.7,2551.0,2.12421282]
[1726903263073,0.81950598,2551.7,2551.4,1.72641282]
[1726903263396,0.0499,2551.9,2551.4,1.72641282]
[1726903263553,0.86940598,2551.9,2551.4,1.72641282]
[1726903263879,0.0499,2551.9,2551.4,1.72641282]
[1726903264039,0.86940598,2551.9,2551.4,3.0]
[1726903264981,1.09014024,2551.8,2551.4,3.0]
[1726903265146,0.86940598,2551.9,2551.4,3.0]
[1726903265348,1.09014016,2551.8,2551.4,3.0]
[1726903265676,0.86940598,2551.9,2551.4,3.0]
[1726903266938,2.45039475,2551.8,2551.4,3.0]
[1726903267142,0.81950598,2551.8,2551.4,3.0]
[1726903269549,1.63167061,2551.7,2551.4,3.0]
[1726903269869,0.81950598,2551.7,2551.4,3.0]
[1726903270488,0.01950598,2551.8,2551.4,3.0]
[1726903270690,1.63187596,2551.7,2551.4,3.0]
[1726903270893,1.28062209,2551.9,2551.4,3.0]
[1726903271073,1.6283781,2551.8,2551.4,3.0]
[1726903271255,1.28062209,2551.9,2551.4,3.0]
[1726903271454,1.6279596,2551.8,2551.4,3.0]
[1726903271789,1.28062209,2551.9,2551.4,3.0]
[1726903271962,1.62812239,2551.8,2551.4,3.0]
[1726903272159,1.28062209,2551.9,2551.4,3.0]
[1726903272475,1.62812236,2551.8,2551.4,3.0]
[1726903272680,1.62812236,2551.7,2551.4,3.0]
[1726903272879,1.28062209,2551.9,2551.4,3.0]
[1726903273083,1.62828364,2551.8,2551.4,3.0]
[1726903273286,1.62828364,2551.7,2551.4,3.0]
[1726903273613,1.23072209,2551.8,2551.4,3.0]
[1726903273803,1.62827244,2551.7,2551.4,3.0]
[1726903273989,1.23072209,2551.8,2551.4,3.0]
[1726903274193,1.62401031,2551.7,2551.4,3.0]
[1726903274389,1.28062209,2551.9,2551.4,3.0]
[1726903274702,1.62400383,2551.8,2551.4,3.0]
[1726903274909,1.62400383,2551.7,2551.4,3.0]
[1726903275109,21.13062209,2551.9,2551.4,3.0]
[1726903275259,1.62401152,2551.8,2551.4,3.0]
[1726903275464,21.13062209,2551.9,2551.4,3.0]
[1726903275809,27.22,2552.3,2551.7,3.5417]
[1726903275968,19.85,2552.4,2551.7,3.5417]
[1726903276164,1.61563071,2552.3,2551.7,3.5417]
[1726903276504,19.85,2552.4,2551.7,3.5417]
[1726903277373,19.85,2552.4,2551.9,3.73919222]
[1726903277603,19.85,2552.4,2552.0,3.0]
[1726903279089,4.16355923,2552.3,2551.7,3.5417]
[1726903279303,2.5493,2552.3,2551.7,3.5417]
[1726903280209,19.85,2552.4,2551.7,3.5417]
[1726903280570,20.67060718,2552.4,2551.7,3.5417]
[1726903280774,1.61380716,2552.3,2551.7,3.5417]
[1726903280980,20.67060718,2552.3,2551.7,3.5417]
[1726903281511,19.85,2552.3,2551.7,3.5417]
[1726903281683,20.67060718,2552.3,2551.7,3.5417]
[1726903281889,19.85,2552.3,2551.7,3.5417]
[1726903282412,19.85,2552.3,2552.0,3.0]
[1726903283883,22.3993,2552.2,2551.7,3.0]
[1726903284087,3.36990718,2552.0,2551.2,0.5417]
[1726903284288,2.43421207,2551.9,2551.2,0.5417]
[1726903284492,0.82060718,2551.9,2551.2,0.5417]
[1726903284681,1.32196991,2551.9,2551.2,0.5417]
[1726903284888,1.32196991,2551.9,2551.3,1.72591968]
[1726903285192,2.42844846,2551.8,2551.3,1.72591968]
[1726903285396,0.82060718,2551.8,2551.3,1.72591968]
[1726903285915,0.82060718,2551.8,2551.2,4.28131725]
[1726903286080,1.32196991,2551.9,2551.3,3.0]
[1726903286426,1.07196953,2551.8,2551.3,3.0]